[Event "*** Titled Tuesday Blitz"]
[Site "Chess.com"]
[Date "2020.05.05"]
[Round "6"]
[White "Akhayan"]
[Black "sergeikim"]
[Result "0-1"]
[WhiteElo "2313"]
[BlackElo "2473"]
[TimeControl "180+1"]
[EndTime "11:07:51 PDT"]
[Termination "sergeikim won by resignation"]

1. d4 {[%clk 0:03:00.9]} 1... Nf6 {[%clk 0:02:59.1]} 2. Nf3 {[%clk 0:03:00.7]}
2... g6 {[%clk 0:02:59.4]} 3. g3 {[%clk 0:03:00.9]} 3... Bg7 {[%clk 0:02:59.8]}
4. Bg2 {[%clk 0:03:01.5]} 4... d6 {[%clk 0:03:00.1]} 5. O-O {[%clk 0:03:02]}
5... O-O {[%clk 0:03:00.6]} 6. c4 {[%clk 0:03:02.1]} 6... Nbd7 {[%clk
0:03:00.4]} 7. Nc3 {[%clk 0:03:01.7]} 7... e5 {[%clk 0:02:59.8]} 8. e4 {[%clk
0:02:59]} 8... exd4 {[%clk 0:02:59.5]} 9. Nxd4 {[%clk 0:02:58.4]} 9... Re8
{[%clk 0:03:00.4]} 10. Re1 {[%clk 0:02:58.6]} 10... Nc5 {[%clk 0:03:00.8]} 11.
h3 {[%clk 0:02:55.7]} 11... c6 {[%clk 0:03:00.9]} 12. Kh2 {[%clk 0:02:55.4]}
12... a5 {[%clk 0:03:00]} 13. Bf4 {[%clk 0:02:53]} 13... Nh5 {[%clk 0:02:58.5]}
14. Be3 {[%clk 0:02:46.4]} 14... a4 {[%clk 0:02:59.4]} 15. Rc1 {[%clk
0:02:40.7]} 15... Qa5 {[%clk 0:02:57.7]} 16. Nde2 {[%clk 0:02:34.2]} 16... Bf8
{[%clk 0:02:37.4]} 17. Nf4 {[%clk 0:02:28.2]} 17... Nf6 {[%clk 0:02:34.6]} 18.
Bd4 {[%clk 0:02:26.3]} 18... Nfd7 {[%clk 0:02:30.7]} 19. b3 {[%clk 0:01:59.7]}
19... axb3 {[%clk 0:02:26.5]} 20. axb3 {[%clk 0:01:59.3]} 20... Ne5 {[%clk
0:02:25.7]} 21. Nce2 {[%clk 0:01:52.2]} 21... Qb4 {[%clk 0:02:15]} 22. Rb1
{[%clk 0:01:44.9]} 22... Ra2 {[%clk 0:02:00.7]} 23. Bc3 {[%clk 0:01:43.9]} 23...
Qb6 {[%clk 0:01:58.6]} 24. Bd4 {[%clk 0:01:31.2]} 24... Qb4 {[%clk 0:01:49.9]}
25. Bc3 {[%clk 0:01:30.9]} 25... Qa3 {[%clk 0:01:49.9]} 26. Qd4 {[%clk
0:01:12.6]} 26... Nxb3 {[%clk 0:01:35.2]} 27. Qb6 {[%clk 0:01:02.2]} 27... Nc5
{[%clk 0:01:29.3]} 28. Bb4 {[%clk 0:00:58.5]} 28... Qa6 {[%clk 0:01:23.3]} 29.
Qxa6 {[%clk 0:00:57.1]} 29... Nxa6 {[%clk 0:01:16.4]} 30. Bc3 {[%clk 0:00:56.4]}
30... Nxc4 {[%clk 0:01:10.6]} 31. Nd3 {[%clk 0:00:41.4]} 31... Ne5 {[%clk
0:01:05.6]} 32. Nec1 {[%clk 0:00:36.9]} 32... Nxd3 {[%clk 0:01:02]} 33. Nxd3
{[%clk 0:00:36.9]} 33... Rc2 {[%clk 0:01:00]} 34. Rec1 {[%clk 0:00:36.8]} 34...
Rxc1 {[%clk 0:00:59]} 35. Rxc1 {[%clk 0:00:37.3]} 35... Nc5 {[%clk 0:00:55.8]}
36. Nxc5 {[%clk 0:00:36.5]} 36... dxc5 {[%clk 0:00:55.8]} 37. f4 {[%clk
0:00:37]} 37... b5 {[%clk 0:00:54.1]} 38. Bf6 {[%clk 0:00:35.5]} 38... Be6
{[%clk 0:00:51.1]} 39. e5 {[%clk 0:00:35.4]} 39... Bd5 {[%clk 0:00:50.1]} 40. g4
{[%clk 0:00:32.3]} 40... c4 {[%clk 0:00:45.5]} 41. f5 {[%clk 0:00:32.3]} 41...
b4 {[%clk 0:00:42.7]} 42. Bf1 {[%clk 0:00:31.2]} 42... c3 {[%clk 0:00:41.7]} 43.
Bd3 {[%clk 0:00:30.2]} 43... Bc5 {[%clk 0:00:35.7]} 44. Ra1 {[%clk 0:00:26.3]}
44... b3 {[%clk 0:00:34.6]} 45. Ra5 {[%clk 0:00:23.7]} 45... Bd4 {[%clk
0:00:29.7]} 46. Ra4 {[%clk 0:00:22.8]} 46... Bxe5+ {[%clk 0:00:27.9]} 47. Bxe5
{[%clk 0:00:23]} 47... Rxe5 {[%clk 0:00:27.4]} 48. f6 {[%clk 0:00:23.2]} 48...
Re8 {[%clk 0:00:26.8]} 49. Rb4 {[%clk 0:00:22.2]} 49... c2 {[%clk 0:00:25.3]}
50. Rb8 {[%clk 0:00:20.8]} 50... Rxb8 {[%clk 0:00:23.9]} 0-1

[Event "*** Titled Tuesday Blitz"]
[Site "Chess.com"]
[Date "2020.05.05"]
[Round "6"]
[White "UmutErdemGunduz"]
[Black "Reader777"]
[Result "1/2-1/2"]
[WhiteElo "2418"]
[BlackElo "2590"]
[TimeControl "180+1"]
[EndTime "11:07:53 PDT"]
[Termination "Game drawn by repetition"]

1. e4 {[%clk 0:03:00.1]} 1... c5 {[%clk 0:02:59.2]} 2. Nf3 {[%clk 0:03:00.1]}
2... d6 {[%clk 0:02:59.3]} 3. d4 {[%clk 0:03:00.7]} 3... cxd4 {[%clk 0:02:59.2]}
4. Nxd4 {[%clk 0:03:01.6]} 4... Nf6 {[%clk 0:02:58.4]} 5. f3 {[%clk 0:03:02.1]}
5... e5 {[%clk 0:02:57.5]} 6. Nb3 {[%clk 0:03:02.1]} 6... Be7 {[%clk 0:02:57.6]}
7. c4 {[%clk 0:03:01.7]} 7... a5 {[%clk 0:02:57.9]} 8. Be3 {[%clk 0:03:01.9]}
8... O-O {[%clk 0:02:54.1]} 9. Nc3 {[%clk 0:03:01.4]} 9... a4 {[%clk 0:02:54.2]}
10. Nc1 {[%clk 0:03:01.5]} 10... Qa5 {[%clk 0:02:54.2]} 11. Qd2 {[%clk 0:03:02]}
11... Nc6 {[%clk 0:02:29.4]} 12. Be2 {[%clk 0:02:59.8]} 12... Be6 {[%clk
0:02:12]} 13. b3 {[%clk 0:02:57.3]} 13... axb3 {[%clk 0:02:09.4]} 14. Nxb3
{[%clk 0:02:58.2]} 14... Qd8 {[%clk 0:02:03.5]} 15. Nd5 {[%clk 0:02:56.5]} 15...
Bxd5 {[%clk 0:01:47.9]} 16. cxd5 {[%clk 0:02:53.8]} 16... Na5 {[%clk 0:01:48.1]}
17. O-O {[%clk 0:02:52.1]} 17... Nxb3 {[%clk 0:01:44.7]} 18. axb3 {[%clk
0:02:53]} 18... Nd7 {[%clk 0:01:44.6]} 19. Qb4 {[%clk 0:02:39.8]} 19... Qc7
{[%clk 0:01:43]} 20. Rfc1 {[%clk 0:02:21.2]} 20... Rxa1 {[%clk 0:01:32.7]} 21.
Rxa1 {[%clk 0:02:22.1]} 21... Rc8 {[%clk 0:01:31.5]} 22. Rc1 {[%clk 0:02:03.7]}
22... Qb8 {[%clk 0:01:28.9]} 23. Rxc8+ {[%clk 0:01:59]} 23... Qxc8 {[%clk
0:01:29.8]} 24. Qb5 {[%clk 0:01:59.9]} 24... h6 {[%clk 0:01:18.3]} 25. Bf1
{[%clk 0:01:49.5]} 25... Bg5 {[%clk 0:01:16.6]} 26. Bf2 {[%clk 0:01:48.4]} 26...
Nf8 {[%clk 0:01:03]} 27. h4 {[%clk 0:01:37.7]} 27... Be7 {[%clk 0:00:59.5]} 28.
b4 {[%clk 0:01:26.2]} 28... Ng6 {[%clk 0:00:54.7]} 29. g3 {[%clk 0:01:24.7]}
29... Qc3 {[%clk 0:00:46.2]} 30. h5 {[%clk 0:01:06.9]} 30... Nf8 {[%clk
0:00:45.1]} 31. Qxb7 {[%clk 0:01:06.9]} 31... Bg5 {[%clk 0:00:43.6]} 32. Be2
{[%clk 0:00:45.2]} 32... Be3 {[%clk 0:00:41.8]} 33. Bxe3 {[%clk 0:00:33.5]}
33... Qxe3+ {[%clk 0:00:41.1]} 34. Kf1 {[%clk 0:00:33.5]} 34... Qd4 {[%clk
0:00:25.8]} 35. Qb5 {[%clk 0:00:29.7]} 35... Nh7 {[%clk 0:00:24.6]} 36. Qc4
{[%clk 0:00:25.9]} 36... Qa1+ {[%clk 0:00:22.5]} 37. Kg2 {[%clk 0:00:22.9]}
37... Nf6 {[%clk 0:00:21.7]} 38. b5 {[%clk 0:00:20.4]} 38... Qb2 {[%clk
0:00:21.6]} 39. g4 {[%clk 0:00:15.9]} 39... Nd7 {[%clk 0:00:21.3]} 40. Qc8+
{[%clk 0:00:15]} 40... Kh7 {[%clk 0:00:21.1]} 41. Qxd7 {[%clk 0:00:13]} 41...
Qxe2+ {[%clk 0:00:20.6]} 42. Kg3 {[%clk 0:00:11.7]} 42... Qe1+ {[%clk
0:00:20.7]} 43. Kg2 {[%clk 0:00:10.9]} 43... Qe2+ {[%clk 0:00:20.8]} 44. Kg3
{[%clk 0:00:09.9]} 44... Qe1+ {[%clk 0:00:21.2]} 45. Kg2 {[%clk 0:00:10.1]}
45... Qe2+ {[%clk 0:00:21.1]} 1/2-1/2

[Event "*** Titled Tuesday Blitz"]
[Site "Chess.com"]
[Date "2020.05.05"]
[Round "6"]
[White "ChelsieMonica"]
[Black "cukus"]
[Result "1/2-1/2"]
[WhiteElo "2352"]
[BlackElo "2502"]
[TimeControl "180+1"]
[EndTime "11:07:55 PDT"]
[Termination "Game drawn by agreement"]

1. c4 {[%clk 0:03:00.9]} 1... e5 {[%clk 0:02:57.9]} 2. Nc3 {[%clk 0:03:00.6]}
2... Nc6 {[%clk 0:02:57.9]} 3. Nf3 {[%clk 0:02:59.3]} 3... a6 {[%clk 0:02:53.8]}
4. e3 {[%clk 0:02:54.6]} 4... Nf6 {[%clk 0:02:49.6]} 5. Be2 {[%clk 0:02:49]}
5... d5 {[%clk 0:02:49.4]} 6. d4 {[%clk 0:02:41.6]} 6... exd4 {[%clk 0:02:46]}
7. Nxd4 {[%clk 0:02:32.1]} 7... Nxd4 {[%clk 0:02:43.9]} 8. Qxd4 {[%clk
0:02:23.5]} 8... c5 {[%clk 0:02:38.6]} 9. Qe5+ {[%clk 0:02:17.9]} 9... Be6
{[%clk 0:02:38.6]} 10. cxd5 {[%clk 0:02:07.1]} 10... Nxd5 {[%clk 0:02:37.1]} 11.
O-O {[%clk 0:01:55.4]} 11... Qf6 {[%clk 0:02:24.8]} 12. Qxf6 {[%clk 0:01:38.1]}
12... Nxf6 {[%clk 0:02:25.1]} 13. Bf3 {[%clk 0:01:39]} 13... O-O-O {[%clk
0:02:11.2]} 14. e4 {[%clk 0:01:34.8]} 14... Bd6 {[%clk 0:02:02.8]} 15. Bg5
{[%clk 0:01:33.4]} 15... Kb8 {[%clk 0:02:01]} 16. Nd5 {[%clk 0:01:15.6]} 16...
Be5 {[%clk 0:01:49.4]} 17. Rab1 {[%clk 0:01:05.9]} 17... h6 {[%clk 0:01:29.7]}
18. Bxf6 {[%clk 0:01:04.9]} 18... gxf6 {[%clk 0:01:29.2]} 19. Rfd1 {[%clk
0:00:59.3]} 19... f5 {[%clk 0:01:19.2]} 20. b3 {[%clk 0:00:54.3]} 20... fxe4
{[%clk 0:01:15.5]} 21. Bxe4 {[%clk 0:00:55.2]} 21... Bd4 {[%clk 0:01:11.7]} 22.
Nf4 {[%clk 0:00:53.3]} 22... Bg4 {[%clk 0:01:07.1]} 23. Rd3 {[%clk 0:00:51.7]}
23... Rhe8 {[%clk 0:01:01]} 24. Bh7 {[%clk 0:00:31.8]} 24... Rh8 {[%clk
0:00:44.6]} 25. h3 {[%clk 0:00:30.7]} 25... Bd7 {[%clk 0:00:35.1]} 26. Be4
{[%clk 0:00:29.3]} 26... Rhe8 {[%clk 0:00:35.6]} 27. Bf3 {[%clk 0:00:29.2]}
27... Bf5 {[%clk 0:00:35.1]} 28. Rbd1 {[%clk 0:00:27.9]} 28... Bxd3 {[%clk
0:00:35.1]} 29. Rxd3 {[%clk 0:00:27.3]} 29... Be5 {[%clk 0:00:35]} 30. Rxd8+
{[%clk 0:00:25.6]} 30... Rxd8 {[%clk 0:00:35.9]} 31. Nd5 {[%clk 0:00:26.2]}
31... Bd4 {[%clk 0:00:34.7]} 32. Kf1 {[%clk 0:00:25.8]} 32... Re8 {[%clk
0:00:33.5]} 33. Nb6 {[%clk 0:00:22.5]} 33... Kc7 {[%clk 0:00:31.9]} 34. Nd5+
{[%clk 0:00:22.7]} 34... Kd6 {[%clk 0:00:31.3]} 35. Nb6 {[%clk 0:00:21.9]} 35...
Re7 {[%clk 0:00:29.5]} 36. Nc8+ {[%clk 0:00:21.2]} 36... Kd7 {[%clk 0:00:30]}
37. Nxe7 {[%clk 0:00:21.4]} 37... Kxe7 {[%clk 0:00:30.9]} 38. Bxb7 {[%clk
0:00:21.9]} 38... a5 {[%clk 0:00:31.5]} 39. Bd5 {[%clk 0:00:21.8]} 39... f6
{[%clk 0:00:30.5]} 40. Ke2 {[%clk 0:00:20.9]} 40... Kd6 {[%clk 0:00:30.9]} 41.
Bc4 {[%clk 0:00:21.7]} 41... Ke5 {[%clk 0:00:31.3]} 42. a4 {[%clk 0:00:22.1]}
42... f5 {[%clk 0:00:31.5]} 43. Kf3 {[%clk 0:00:23]} 43... f4 {[%clk 0:00:31.5]}
44. Bd3 {[%clk 0:00:22.8]} 44... Bc3 {[%clk 0:00:30.4]} 45. Bh7 {[%clk
0:00:22.6]} 45... Be1 {[%clk 0:00:30.3]} 46. Bg8 {[%clk 0:00:22.8]} 46... Bd2
{[%clk 0:00:29.1]} 47. Bc4 {[%clk 0:00:23.1]} 47... Bc1 {[%clk 0:00:29.1]} 48.
Kg4 {[%clk 0:00:22.9]} 48... Kf6 {[%clk 0:00:23.8]} 49. Kh5 {[%clk 0:00:22.7]}
49... Kg7 {[%clk 0:00:21.7]} 50. g4 {[%clk 0:00:22.8]} 50... fxg3 {[%clk
0:00:21]} 51. fxg3 {[%clk 0:00:23.7]} 51... Bd2 {[%clk 0:00:21]} 52. Kg4 {[%clk
0:00:23.3]} 52... Bc1 {[%clk 0:00:20.9]} 53. Kf5 {[%clk 0:00:22.4]} 1/2-1/2

[Event "*** Titled Tuesday Blitz"]
[Site "Chess.com"]
[Date "2020.05.05"]
[Round "6"]
[White "eightbyeightchess"]
[Black "svilson23"]
[Result "1/2-1/2"]
[WhiteElo "2404"]
[BlackElo "2259"]
[TimeControl "180+1"]
[EndTime "11:07:56 PDT"]
[Termination "Game drawn by repetition"]

1. e4 {[%clk 0:03:00.9]} 1... c5 {[%clk 0:02:59.1]} 2. Nf3 {[%clk 0:03:00.9]}
2... Nc6 {[%clk 0:02:59.3]} 3. d4 {[%clk 0:03:00.6]} 3... cxd4 {[%clk
0:02:59.8]} 4. Nxd4 {[%clk 0:03:00.9]} 4... e5 {[%clk 0:03:00.2]} 5. Nb3 {[%clk
0:03:00.7]} 5... Bb4+ {[%clk 0:02:30.5]} 6. Nc3 {[%clk 0:02:59.8]} 6... Nf6
{[%clk 0:02:27]} 7. Bc4 {[%clk 0:02:58.8]} 7... O-O {[%clk 0:02:20.2]} 8. O-O
{[%clk 0:02:58.5]} 8... Bxc3 {[%clk 0:02:16.7]} 9. bxc3 {[%clk 0:02:59.4]} 9...
Nxe4 {[%clk 0:02:16.9]} 10. Ba3 {[%clk 0:02:59.7]} 10... d6 {[%clk 0:02:14.3]}
11. Qd3 {[%clk 0:02:59.2]} 11... Nf6 {[%clk 0:00:53.7]} 12. Bxd6 {[%clk
0:02:55.6]} 12... Bf5 {[%clk 0:00:42.8]} 13. Qxf5 {[%clk 0:02:48.5]} 13... Qxd6
{[%clk 0:00:42.6]} 14. Rad1 {[%clk 0:02:49.2]} 14... Qc7 {[%clk 0:00:43]} 15.
Nc5 {[%clk 0:02:35.9]} 15... Ne7 {[%clk 0:00:41.1]} 16. Qg5 {[%clk 0:02:00.5]}
16... Qxc5 {[%clk 0:00:39.7]} 17. Bb3 {[%clk 0:01:58.7]} 17... h6 {[%clk
0:00:35]} 18. Qh4 {[%clk 0:01:51.4]} 18... Ng6 {[%clk 0:00:33.7]} 19. Qg3 {[%clk
0:01:51.1]} 19... Nf4 {[%clk 0:00:29.4]} 20. Rfe1 {[%clk 0:01:46.2]} 20... Rad8
{[%clk 0:00:28.4]} 21. Qf3 {[%clk 0:01:37.8]} 21... Rxd1 {[%clk 0:00:27]} 22.
Rxd1 {[%clk 0:01:38.6]} 22... Rc8 {[%clk 0:00:20.9]} 23. Qxb7 {[%clk 0:01:36.8]}
23... Qc7 {[%clk 0:00:15.6]} 24. Qb5 {[%clk 0:01:21.4]} 24... Rd8 {[%clk
0:00:15]} 25. Rf1 {[%clk 0:01:13.1]} 25... Ng6 {[%clk 0:00:14.9]} 26. c4 {[%clk
0:01:10]} 26... Ne4 {[%clk 0:00:13.1]} 27. Re1 {[%clk 0:00:58.8]} 27... Nd2
{[%clk 0:00:12.5]} 28. h3 {[%clk 0:00:53.8]} 28... Nxb3 {[%clk 0:00:10.7]} 29.
cxb3 {[%clk 0:00:54.7]} 29... Qe7 {[%clk 0:00:08.7]} 30. c5 {[%clk 0:00:53.4]}
30... Nf4 {[%clk 0:00:08.4]} 31. Kh2 {[%clk 0:00:35.4]} 31... Nd5 {[%clk
0:00:06.7]} 32. c6 {[%clk 0:00:32.6]} 32... Qc7 {[%clk 0:00:07]} 33. b4 {[%clk
0:00:28.3]} 33... e4+ {[%clk 0:00:07.2]} 34. g3 {[%clk 0:00:28.5]} 34... e3
{[%clk 0:00:06.7]} 35. fxe3 {[%clk 0:00:17.6]} 35... Nc3 {[%clk 0:00:07.1]} 36.
Qb7 {[%clk 0:00:09.4]} 36... Rd2+ {[%clk 0:00:07.2]} 37. Kh1 {[%clk 0:00:07.3]}
37... Qxg3 {[%clk 0:00:07]} 38. Qc8+ {[%clk 0:00:06.7]} 38... Kh7 {[%clk
0:00:06.9]} 39. Qf5+ {[%clk 0:00:07.4]} 39... Kh8 {[%clk 0:00:04.4]} 40. Qc8+
{[%clk 0:00:07]} 40... Kh7 {[%clk 0:00:04.6]} 41. Qf5+ {[%clk 0:00:07.7]} 41...
Kh8 {[%clk 0:00:02.1]} 42. Qc8+ {[%clk 0:00:07.5]} 42... Kh7 {[%clk 0:00:02.3]}
1/2-1/2

[Event "*** Titled Tuesday Blitz"]
[Site "Chess.com"]
[Date "2020.05.05"]
[Round "6"]
[White "drinbet"]
[Black "pooh2012"]
[Result "0-1"]
[WhiteElo "2306"]
[BlackElo "2459"]
[TimeControl "180+1"]
[EndTime "11:07:58 PDT"]
[Termination "pooh2012 won on time"]

1. e4 {[%clk 0:03:00.9]} 1... c5 {[%clk 0:02:58.7]} 2. Nf3 {[%clk 0:02:56.7]}
2... Nf6 {[%clk 0:02:58.1]} 3. e5 {[%clk 0:02:52.4]} 3... Nd5 {[%clk 0:02:57.3]}
4. d4 {[%clk 0:02:49.5]} 4... cxd4 {[%clk 0:02:55.1]} 5. Qxd4 {[%clk 0:02:49.6]}
5... Nb6 {[%clk 0:02:49.6]} 6. Nc3 {[%clk 0:02:30.2]} 6... Nc6 {[%clk
0:02:39.7]} 7. Qe4 {[%clk 0:02:29.8]} 7... d5 {[%clk 0:02:21.6]} 8. exd6 {[%clk
0:02:27.7]} 8... Qxd6 {[%clk 0:02:21.7]} 9. Bf4 {[%clk 0:02:26.6]} 9... Qb4
{[%clk 0:01:56.1]} 10. Qxb4 {[%clk 0:02:14.1]} 10... Nxb4 {[%clk 0:01:55.1]} 11.
O-O-O {[%clk 0:02:11.6]} 11... Bf5 {[%clk 0:01:12.6]} 12. a3 {[%clk 0:01:40.6]}
12... Nc6 {[%clk 0:01:01.5]} 13. Nb5 {[%clk 0:01:39.1]} 13... Rc8 {[%clk
0:00:30.6]} 14. Nc7+ {[%clk 0:01:32.9]} 14... Rxc7 {[%clk 0:00:30.6]} 15. Bxc7
{[%clk 0:01:32.5]} 15... f6 {[%clk 0:00:27.7]} 16. Bxb6 {[%clk 0:01:15.2]} 16...
axb6 {[%clk 0:00:26.8]} 17. Nd4 {[%clk 0:01:13.5]} 17... Bd7 {[%clk 0:00:25.5]}
18. Bc4 {[%clk 0:01:06.6]} 18... e5 {[%clk 0:00:18.9]} 19. Ne6 {[%clk
0:00:53.1]} 19... Bxe6 {[%clk 0:00:14.7]} 20. Bxe6 {[%clk 0:00:52.5]} 20... Nd4
{[%clk 0:00:15]} 21. Bd5 {[%clk 0:00:47.8]} 21... Nc6 {[%clk 0:00:15]} 22. Rd3
{[%clk 0:00:37]} 22... Bc5 {[%clk 0:00:10.4]} 23. Bxc6+ {[%clk 0:00:32]} 23...
bxc6 {[%clk 0:00:09.8]} 24. Rhd1 {[%clk 0:00:31.8]} 24... Kf7 {[%clk 0:00:09.1]}
25. Rd7+ {[%clk 0:00:30.7]} 25... Kg6 {[%clk 0:00:08.7]} 26. f3 {[%clk
0:00:30.8]} 26... Be3+ {[%clk 0:00:06.4]} 27. Kb1 {[%clk 0:00:30.3]} 27... h5
{[%clk 0:00:05.6]} 28. Rc7 {[%clk 0:00:29.6]} 28... c5 {[%clk 0:00:05.3]} 29.
Rdd7 {[%clk 0:00:28.5]} 29... Rh7 {[%clk 0:00:05.8]} 30. c4 {[%clk 0:00:27.3]}
30... h4 {[%clk 0:00:05.3]} 31. h3 {[%clk 0:00:27]} 31... Bh6 {[%clk 0:00:02.4]}
32. Kc2 {[%clk 0:00:25]} 32... Kf5 {[%clk 0:00:02]} 33. Kd3 {[%clk 0:00:21.4]}
33... Kf4 {[%clk 0:00:02.4]} 34. Ke2 {[%clk 0:00:21.7]} 34... Kg3 {[%clk
0:00:02.9]} 35. Kf1 {[%clk 0:00:21.2]} 35... Rh8 {[%clk 0:00:03.5]} 36. Rb7
{[%clk 0:00:14.8]} 36... Re8 {[%clk 0:00:02.5]} 37. Rd3 {[%clk 0:00:04.4]} 37...
Kh2 {[%clk 0:00:01.4]} 38. Rxb6 {[%clk 0:00:03.1]} 38... e4 {[%clk 0:00:01.7]}
39. fxe4 {[%clk 0:00:03]} 39... Rxe4 {[%clk 0:00:02.6]} 40. Rb5 {[%clk
0:00:02.2]} 40... Rxc4 {[%clk 0:00:02.6]} 0-1

[Event "*** Titled Tuesday Blitz"]
[Site "Chess.com"]
[Date "2020.05.05"]
[Round "6"]
[White "ChessWarrior3"]
[Black "Antelacus"]
[Result "0-1"]
[WhiteElo "2042"]
[BlackElo "2272"]
[TimeControl "180+1"]
[EndTime "11:08:00 PDT"]
[Termination "Antelacus won on time"]

1. e4 {[%clk 0:03:00.9]} 1... c5 {[%clk 0:02:59.7]} 2. Nf3 {[%clk 0:03:01.4]}
2... d6 {[%clk 0:02:59.9]} 3. d4 {[%clk 0:03:00.8]} 3... cxd4 {[%clk 0:03:00.5]}
4. Nxd4 {[%clk 0:03:01.4]} 4... Nf6 {[%clk 0:03:00.8]} 5. Nc3 {[%clk 0:03:02]}
5... a6 {[%clk 0:03:01.3]} 6. f3 {[%clk 0:03:02]} 6... e6 {[%clk 0:03:00.3]} 7.
Be3 {[%clk 0:03:00.9]} 7... Be7 {[%clk 0:03:00]} 8. Qd2 {[%clk 0:03:00.6]} 8...
Qc7 {[%clk 0:02:59.7]} 9. a4 {[%clk 0:02:51.8]} 9... Nbd7 {[%clk 0:02:49.8]} 10.
g4 {[%clk 0:02:42.3]} 10... Ne5 {[%clk 0:02:44.4]} 11. g5 {[%clk 0:02:37.1]}
11... Nfd7 {[%clk 0:02:41.7]} 12. Be2 {[%clk 0:01:28.4]} 12... b6 {[%clk
0:02:35.7]} 13. h4 {[%clk 0:01:25]} 13... Bb7 {[%clk 0:02:33.4]} 14. h5 {[%clk
0:01:24.1]} 14... Nc4 {[%clk 0:02:21.6]} 15. Bxc4 {[%clk 0:01:23.3]} 15... Qxc4
{[%clk 0:02:20.7]} 16. b3 {[%clk 0:01:10.1]} 16... Qc7 {[%clk 0:02:17.8]} 17. g6
{[%clk 0:01:09.5]} 17... hxg6 {[%clk 0:02:16]} 18. h6 {[%clk 0:00:42.1]} 18...
gxh6 {[%clk 0:02:15.3]} 19. Rxh6 {[%clk 0:00:40.1]} 19... Rxh6 {[%clk
0:02:12.2]} 20. Bxh6 {[%clk 0:00:41]} 20... Rc8 {[%clk 0:02:05.8]} 21. Nde2
{[%clk 0:00:22.5]} 21... Ne5 {[%clk 0:02:03.4]} 22. Qe3 {[%clk 0:00:18.9]} 22...
Qc5 {[%clk 0:01:56.1]} 23. Qxc5 {[%clk 0:00:18.1]} 23... dxc5 {[%clk 0:01:49.7]}
24. Kf2 {[%clk 0:00:15.7]} 24... f5 {[%clk 0:01:38.5]} 25. Ke3 {[%clk
0:00:14.6]} 25... Kf7 {[%clk 0:01:36.1]} 26. Nf4 {[%clk 0:00:14.5]} 26... Rh8
{[%clk 0:01:32.8]} 27. Rh1 {[%clk 0:00:12]} 27... g5 {[%clk 0:01:30.8]} 28. Nfe2
{[%clk 0:00:08.6]} 28... f4+ {[%clk 0:01:28.8]} 29. Nxf4 {[%clk 0:00:07.6]}
29... gxf4+ {[%clk 0:01:28.2]} 30. Kxf4 {[%clk 0:00:08.5]} 30... Ng6+ {[%clk
0:01:25.5]} 31. Kg4 {[%clk 0:00:08]} 31... Bf8 {[%clk 0:01:22.3]} 32. Bxf8
{[%clk 0:00:07.7]} 32... Rxh1 {[%clk 0:01:21.1]} 33. Bd6 {[%clk 0:00:07.1]}
33... Rc1 {[%clk 0:01:15.5]} 34. Ne2 {[%clk 0:00:06.9]} 34... Rxc2 {[%clk
0:01:14]} 35. Ng1 {[%clk 0:00:06]} 35... b5 {[%clk 0:01:11.4]} 36. Nh3 {[%clk
0:00:05.5]} 36... Rg2+ {[%clk 0:01:02.7]} 37. Kh5 {[%clk 0:00:05.2]} 37... Nf8
{[%clk 0:00:54.6]} 38. e5 {[%clk 0:00:05]} 38... Bxf3+ {[%clk 0:00:49.6]} 39.
Kh4 {[%clk 0:00:04.7]} 39... Rg4+ {[%clk 0:00:48.2]} 40. Kh5 {[%clk 0:00:04.7]}
40... Rxa4+ {[%clk 0:00:44.6]} 41. Kh6 {[%clk 0:00:04.1]} 41... Rh4+ {[%clk
0:00:43.6]} 42. Kg5 {[%clk 0:00:04.7]} 42... Rxh3 {[%clk 0:00:43.6]} 43. Kf4
{[%clk 0:00:04.7]} 43... c4 {[%clk 0:00:42.6]} 44. Ke3 {[%clk 0:00:04.9]} 44...
cxb3 {[%clk 0:00:41.4]} 45. Kd2 {[%clk 0:00:05.4]} 45... b2 {[%clk 0:00:41.2]}
46. Kc2 {[%clk 0:00:05.8]} 46... Rh2+ {[%clk 0:00:41.4]} 47. Kc3 {[%clk
0:00:05.1]} 47... b1=Q {[%clk 0:00:40.1]} 48. Bxf8 {[%clk 0:00:05.7]} 48... Rc2+
{[%clk 0:00:38.3]} 49. Kd4 {[%clk 0:00:06.1]} 49... Qd1+ {[%clk 0:00:37.7]} 50.
Ke3 {[%clk 0:00:07]} 50... Re2+ {[%clk 0:00:36.3]} 51. Kf4 {[%clk 0:00:07.4]}
51... Qd4+ {[%clk 0:00:34.8]} 0-1